Cogmind - Beta 13 @@@ ROGUE MODE // 2024.07.12 @ 13:14:19 Player: JackZewap Result: Destroyed by Cetus Guard with Advanced KE Penetrator Performance ------------- Evolutions (4) 2000 Regions Visited (9) 1800 Robots Destroyed (108) 540 Value Destroyed (3380) 3380 Prototype IDs (29) 580 Alien Tech Used (0) 0 Bonus (1338) 1338 TOTAL SCORE: 9638 Bonus ------- High Alert Combat Kills 699 Follower Combat Kills 1008 Aligned with FarCom 300 Friendly Fire -669 Cogmind --------- Core Integrity 0/850 Matter 280/300 Energy 38/100 System Corruption 4% Temperature Cool (0) Movement Core (50) Location -6/Cetus Parts ------- > --- POWER (1) -------- (None) > --- PROPULSION (4) --- (None) > --- UTILITY (7) ------ Advanced Melee Analysis Suite > --- WEAPON (3) ------- (None) > --- INVENTORY (5) ---- Improved Deuterium Engine Improved Cooling System Cloak of Protection Splice Drone Bay (6/6) Spear Peak State ------------ > --- POWER ------------ Light Angular Momentum Engine > --- PROPULSION ------- Carbon-fiber Leg Flexi-carbon Leg Flexi-carbon Leg Flexi-carbon Leg > --- UTILITY ---------- Advanced Heat Sink Advanced Heat Sink Small Storage Unit Advanced Targeting Computer Armor Integrity Analyzer Phase Shifter Improved Light Armor Plating > --- WEAPON ----------- Heavy Laser Heavy Laser Gatling Laser > --- INVENTORY -------- Improved Deuterium Engine Carbon-fiber Leg Improved Cooling System Transmission Jammer Cloak of Protection Splice Drone Bay Heavy Missile Launcher Spear [Rating: 64] Favorites ----------- Power Heavy Deuterium Engine Engine Heavy Deuterium Engine Power Core Neutrino Core Propulsion Gravmag System Treads Light Treads Leg Flexi-carbon Leg Hover Unit Gravmag System Flight Unit Biomechanical Wings Utility Small Storage Unit Device Improved Heat Sink Storage Small Storage Unit Processor Advanced Targeting Computer Hackware Hacking Suite Protection Hardened Light Armor Plating Weapon High-powered Field Laser Energy Gun High-powered Field Laser Ballistic Gun Assault Rifle Ballistic Cannon Bore Cannon Launcher Heavy Missile Launcher Impact Weapon Power Maul Slashing Weapon Ripper Piercing Weapon Spear Build | -11 -10 -10 -10 -9 -8 -7 -6 -6 -6 ------- Run | Yrd Mat Min Exi Min Mat Fac Fac Ext Cet Slots Evolved 8 | . . . . . 4 2 2 . . Power . | . . . . . . . . . . Propulsion 2 | . . . . . 1 1 . . . Utility 5 | . . . . . 2 1 2 . . Weapon 1 | . . . . . 1 . . . . Parts Attached 149 | 7 3 2 3 4 29 32 4 64 1 Power 14 | 1 . . . . 4 1 . 8 . Engine 11 | 1 . . . . 3 1 . 6 . Core 3 | . . . . . 1 . . 2 . Reactor . | . . . . . . . . . . Propulsion 49 | 3 . . . . 7 14 . 25 . Treads 8 | 2 . . . . 4 . . 2 . Leg 23 | 1 . . . . . . . 22 . Wheel . | . . . . . . . . . . Hover 17 | . . . . . 3 14 . . . Flight 1 | . . . . . . . . 1 . Utility 47 | 1 1 2 3 1 8 10 4 16 1 Device 33 | . 1 2 3 1 4 8 3 10 1 Storage 4 | 1 . . . . 1 1 1 . . Processor 6 | . . . . . 2 1 . 3 . Hackware 1 | . . . . . . . . 1 . Protection 3 | . . . . . 1 . . 2 . Artifact . | . . . . . . . . . . Weapon 39 | 2 2 . . 3 10 7 . 15 . Energy Gun 22 | 1 . . . . 9 5 . 7 . Energy Cannon . | . . . . . . . . . . Ballistic Gun 7 | 1 2 . . 3 1 . . . . Ballistic Cannon 1 | . . . . . . . . 1 . Launcher 3 | . . . . . . . . 3 . Special Weapon . | . . . . . . . . . . Impact Weapon 2 | . . . . . . 2 . . . Slashing Weapon 1 | . . . . . . . . 1 . Piercing Weapon 3 | . . . . . . . . 3 . Special Melee Weapon . | . . . . . . . . . . Unidentified Prototypes 6 | . . 1 . . 1 3 . 1 . Corrupted Parts 1 | . . . . . . . . 1 . System Corruption 1 | . . . . . . . . 1 . Parts Lost 37 | . . . . . . 5 . 32 . Power 2 | . . . . . . . . 2 . Propulsion 18 | . . . . . . 4 . 14 . Utility 9 | . . . . . . . . 9 . Weapon 8 | . . . . . . 1 . 7 . Highest Loss Streak 9 | . . . . . . 2 . 9 . To Critical Strikes . | . . . . . . . . . . Average Slot Usage (%) 90 | . 91 98 99 100 95 96 100 78 8 Engine 7 | . 14 14 14 14 8 7 6 3 . Treads 8 | . 28 28 28 28 21 . . 1 . Leg 5 | . . . . . . . . 17 . Hover 10 | . . . . . 4 28 26 1 . Device 14 | . 5 12 13 14 21 15 26 10 2 Storage 8 | . 14 14 14 14 7 8 6 5 . Processor 8 | . . . . . 3 12 13 12 6 Protection 1 | . . . . . 1 . . 3 . Energy Gun 13 | . 12 . . . 23 21 20 8 . Ballistic Gun 5 | . 15 28 28 28 2 . . . . Piercing Weapon 1 | . . . . . . . . 3 . Naked Turns 13 | . . . . . . . . 13 . Heaviest Build 36 | 14 15 22 22 17 31 30 30 36 8 Greatest Support 80 | 40 40 40 40 40 60 46 47 80 3 Greatest Overweight (x) 8 | . . . . . 1 1 . 8 2 Average Overweight (x) . | . . . . . . . . . . Largest Inventory Capacity 8 | 8 8 8 8 8 8 8 8 8 5 Average Capacity 7 | 6 8 8 8 8 7 7 8 7 5 Most Carried 8 | . 4 8 8 8 8 8 8 8 5 Average Carried 7 | . 1 6 7 7 7 7 6 7 4 Final Capacity 8 | 8 8 8 8 8 5 8 8 5 5 Final Carried 8 | . 4 8 7 8 5 8 7 5 5 Class Distribution -------------------- 43% | Skirmisher 34% | Mutant 9% | Commander-Mutant 8% | Scavenger-Mutant 4% | Scavenger-Gunner Dominant Class ---------------- Mutant | -10/Materials Mutant | -10/Mines Mutant | -10/Exiles Mutant | -9/Mines Skirmisher | -8/Materials Skirmisher | -7/Factory Skirmisher | -6/Factory Commander-Mutant | -6/Extension Commander-Mutant | -6/Cetus Resources | -11 -10 -10 -10 -9 -8 -7 -6 -6 -6 ----------- Run | Yrd Mat Min Exi Min Mat Fac Fac Ext Cet Matter Collected 2290 | 209 88 24 . 43 248 488 . 1190 . Remotely . | . . . . . . . . . . Salvage Created 4134 | . 108 . . . 248 1240 . 2538 . Parts 152 | . 11 . . . 9 53 . 79 . Haulers Intercepted 2 | . . . . . 1 1 . . . Recyclers Shooed 3 | . . . . . . 1 . 2 . Parts Field Recycled . | . . . . . . . . . . Retrieved Matter . | . . . . . . . . . . Parts Self-Destructed . | . . . . . . . . . . Prevented . | . . . . . . . . . . Kills | -11 -10 -10 -10 -9 -8 -7 -6 -6 -6 ------- Run | Yrd Mat Min Exi Min Mat Fac Fac Ext Cet Combat Hostiles Destroyed 62 | . 5 . . . 4 15 . 38 . Melee 4 | . . . . . . . . 4 . Guns 32 | . 5 . . . 4 11 . 12 . AOE 21 | . . . . . . . . 21 . Classes Destroyed 17 | . 2 . . . 4 6 . 5 . Worker 13 | . . . . . . 7 . 6 . Builder 7 | . . . . . . 2 . 5 . Tunneler 3 | . . . . . . . . 3 . Hauler 2 | . . . . . 1 1 . . . Recycler 9 | . . . . . . 2 . 7 . Operator 3 | . . . . . . 2 . 1 . Watcher 7 | . . . . . 1 5 . 1 . Swarmer 8 | . 3 . . . . 3 . 2 . Grunt 29 | . 2 . . . 2 5 . 20 . Brawler 2 | . . . . . 1 . . 1 . Duelist 1 | . . . . . . . . 1 . Protector 1 | . . . . . . . . 1 . Sentry 8 | . . . . . . 2 . 6 . Demolisher 1 | . . . . . . . . 1 . Hunter 4 | . . . . . 1 1 . 2 . Programmer 4 | . . . . . . 4 . . . Behemoth 1 | . . . . . . . . 1 . Thug 2 | . . . . . . . . 2 . Savage 1 | . . . . . . . . 1 . Butcher 2 | . . . . . . . . 2 . Best Kill Streak 16 | . 3 . . . 3 3 . 16 . Combat Bots Only 8 | . 3 . . . 3 3 . 8 . Max Kills in Single Turn 4 | . 1 . . . 2 2 . 4 . Gunslinging 1 | . . . . . 1 1 . . . Exploded 3 | . . . . . . . . 3 . Melee 1 | . . . . . . . . 1 . Uniques/NPCs Destroyed . | . . . . . . . . . . Combat | -11 -10 -10 -10 -9 -8 -7 -6 -6 -6 -------- Run | Yrd Mat Min Exi Min Mat Fac Fac Ext Cet Hostile Shots Fired 566 | . 14 . . . 35 150 7 346 14 Missed 216 | . 4 . . . 9 69 2 130 2 Damage Taken 5175 | . 99 . . . 422 1001 98 3193 362 Core 1054 | . 10 . . . 51 136 . 680 177 Absorbed by Shields 87 | . . . . . . . . 87 . Regen/Repaired (Parts) 57 | . . . . . 57 . . . . Core Remaining (%) 91 | 100 . . . 96 90 80 . . . Volleys Fired 199 | . 15 . . . 13 74 1 96 . Largest 3 | . 2 . . . 3 3 3 3 . Hottest 240 | . 70 . . . 240 201 201 218 . Shots Fired 418 | . 30 . . . 35 199 3 151 . Gun 370 | . 30 . . . 35 199 3 103 . Cannon 7 | . . . . . . . . 7 . Launcher 41 | . . . . . . . . 41 . Special . | . . . . . . . . . . Kinetic 33 | . 15 . . . 11 . . 7 . Thermal 344 | . 15 . . . 24 199 3 103 . Explosive 41 | . . . . . . . . 41 . Electromagnetic . | . . . . . . . . . . Robot Hit Streak 52 | . 7 . . . 11 17 1 52 . Robot Miss Streak 5 | . 2 . . . 2 5 2 3 . Penetration Max 1 | . . . . . . . . 1 . Secondary Targets 7 | . . . . . 2 3 . 2 . Max Gunslinging Chain 2 | . . . . . 1 2 . 1 . Shots Hit Robots 275 | . 19 . . . 26 126 1 103 . Core Hits 242 | . 7 . . . 16 49 . 170 . Critical Kills . | . . . . . . . . . . Critical Parts Destroyed 3 | . . . . . . . . 3 . Critical Strikes 28 | . 1 . . . . 17 . 10 . Burn 23 | . 1 . . . . 17 . 5 . Destroy 3 | . . . . . . . . 3 . Sever 1 | . . . . . . . . 1 . Impale 1 | . . . . . . . . 1 . Melee Attacks 14 | . . . . . . 2 . 12 . Impact 2 | . . . . . . 2 . . . Slashing 7 | . . . . . . . . 7 . Piercing 5 | . . . . . . . . 5 . Sneak Attacks 5 | . . . . . . 1 . 4 . Combat Hostiles . | . . . . . . . . . . Follow-up Attacks . | . . . . . . . . . . Damage Inflicted 12571 | . 243 . . . 492 2938 24 8874 . Guns 5563 | . 243 . . . 492 2846 24 1958 . Cannons 142 | . . . . . . . . 142 . Explosions 6350 | . . . . . . . . 6350 . Melee 486 | . . . . . . 92 . 394 . Ramming 30 | . . . . . . . . 30 . Kinetic 361 | . 131 . . . 88 . . 142 . Thermal 5344 | . 112 . . . 404 2846 24 1958 . Explosive 6350 | . . . . . . . . 6350 . Electromagnetic . | . . . . . . . . . . Impact 92 | . . . . . . 92 . . . Slashing 187 | . . . . . . . . 187 . Piercing 207 | . . . . . . . . 207 . Highest Corruption 5 | . . . . . . 5 . 4 4 Average Corruption 2 | . . . . . . 2 . 1 4 Corruption Purged . | . . . . . . . . . . Corruption Blocked . | . . . . . . . . . . Effects 31 | . . . . . . 21 . 9 1 Message Errors 9 | . . . . . . 4 . 4 1 Matter Fused 7 | . . . . . . 5 . 2 . Heat Flow Errors 4 | . . . . . . 4 . . . Energy Discharges 3 | . . . . . . 2 . 1 . Parts Fused 2 | . . . . . . 1 . 1 . Data Loss (minor) 2 | . . . . . . 2 . . . Misfires 1 | . . . . . . 1 . . . Alerts 1 | . . . . . . 1 . . . Weapon Failures 2 | . . . . . . 1 . 1 . Overload Shots . | . . . . . . . . . . Overflow Damage 225 | . . . . . . . . 225 . Projectiles . | . . . . . . . . . . Explosions 196 | . . . . . . . . 196 . Melee 29 | . . . . . . . . 29 . Knockbacks . | . . . . . . . . . . Impact . | . . . . . . . . . . Kinetic . | . . . . . . . . . . Secondary . | . . . . . . . . . . Self-Inflicted Damage 78 | . . . . . . . . 78 . Shots 2 | . . . . . . . . 2 . Rammed 2 | . . . . . . . . 2 . Targets Rammed 4 | . . . . . . . . 4 . Kicked 2 | . . . . . . . . 2 . Crushed . | . . . . . . . . . . Highest Temperature 447 | . 90 . . . 447 237 8 309 . Average Temperature 79 | . 39 . . . 206 62 7 43 . Received Heat Transfer 1762 | . 36 . . . 171 141 . 1369 45 Effects 6 | . . . . . 6 . . . . Shutdowns 1 | . . . . . 1 . . . . Interference 3 | . . . . . 3 . . . . Damage (minor) 2 | . . . . . 2 . . . . Siege Activations . | . . . . . . . . . . Robots Corrupted . | . . . . . . . . . . Combat Hostiles . | . . . . . . . . . . Parts Fried 1 | . . . . . . . . 1 . Impact Corruptions . | . . . . . . . . . . Robots Melted 6 | . . . . . . 5 . 1 . Combat Hostiles 5 | . . . . . . 4 . 1 . Parts Melted 31 | . . . . . 1 19 . 11 . Heat Transferred 11345 | . 407 . . . 898 5957 37 4046 . Parts Sabotaged . | . . . . . . . . . . Parts Stolen . | . . . . . . . . . . Parts Stripped . | . . . . . . . . . . Power Chain Reactions . | . . . . . . . . . . Alert | -11 -10 -10 -10 -9 -8 -7 -6 -6 -6 ------- Run | Yrd Mat Min Exi Min Mat Fac Fac Ext Cet Peak Influence 1358 | . 116 45 . . 127 357 178 1358 662 Initial 662 | . . 45 . . . 16 174 86 662 Average 278 | . 73 45 . . 49 126 174 605 662 Maximum Alert Level 4 | . . . . . . 1 . 4 2 Low Security (%) 71 | 100 100 100 . 100 100 75 100 45 . Level 1 12 | . . . . . . 24 . 8 . Level 2 1 | . . . . . . . . 3 100 Level 3 3 | . . . . . . . . 10 . Level 4 11 | . . . . . . . . 32 . Level 5 . | . . . . . . . . . . High Security . | . . . . . . . . . . Max Security . | . . . . . . . . . . Squads Dispatched 20 | . . . . . 1 10 . 9 . Investigation 3 | . . . . . . 2 . 1 . Extermination 2 | . . . . . . 2 . . . Reinforcement 12 | . . . . . 1 6 . 5 . Assault 3 | . . . . . . . . 3 . Garrison . | . . . . . . . . . . Intercept . | . . . . . . . . . . Searches Triggered . | . . . . . . . . . . Construction Impeded 2 | . . . . . . . . 2 . Haulers Reinforced . | . . . . . . . . . . Active Scanning Responses . | . . . . . . . . . . Cargo Convoy Interrupts . | . . . . . . . . . . Stealth | -11 -10 -10 -10 -9 -8 -7 -6 -6 -6 --------- Run | Yrd Mat Min Exi Min Mat Fac Fac Ext Cet Distress Signals 8 | . . . . . . 2 . 5 1 Communications Jammed . | . . . . . . . . . . Distress Signals . | . . . . . . . . . . Times Spotted 135 | . 5 . . . 7 33 3 82 5 Peak Tracking Total 12 | . 3 . . . 3 5 3 12 5 Tactical Retreats 6 | . . . . . . 2 . 4 . Traps | -11 -10 -10 -10 -9 -8 -7 -6 -6 -6 ------- Run | Yrd Mat Min Exi Min Mat Fac Fac Ext Cet Traps Triggered 3 | . . . . . . 2 . 1 . Indirectly . | . . . . . . . . . . Trap Hack Attempts . | . . . . . . . . . . Triggered . | . . . . . . . . . . Disarmed . | . . . . . . . . . . Reprogrammed . | . . . . . . . . . . Reused . | . . . . . . . . . . Traps Extracted . | . . . . . . . . . . Installed . | . . . . . . . . . . Triggered . | . . . . . . . . . . Machines | -11 -10 -10 -10 -9 -8 -7 -6 -6 -6 ---------- Run | Yrd Mat Min Exi Min Mat Fac Fac Ext Cet Machines Disabled 4 | . . . . . . 1 . 3 . Max in Single Turn 1 | . . . . . . 1 . 1 . Energy Cycler 1 | . . . . . . . . 1 . Machines Repaired . | . . . . . . . . . . Machines Dismantled . | . . . . . . . . . . Machines Sabotaged . | . . . . . . . . . . Overloaded Fab Kills . | . . . . . . . . . . Hacking | -11 -10 -10 -10 -9 -8 -7 -6 -6 -6 --------- Run | Yrd Mat Min Exi Min Mat Fac Fac Ext Cet Machines Accessed 22 | . 1 1 1 . 3 12 1 3 . Terminals 14 | . 1 . . . 2 7 1 3 . Fabricators 2 | . . . . . . 2 . . . Repair Stations 1 | . . . . . 1 . . . . Recycling Units 2 | . . . . . . 2 . . . Scanalyzers . | . . . . . . . . . . Garrison Access 1 | . . . . . . 1 . . . Total Hacks 43 | . 2 1 1 . 6 21 1 11 . Successful 19 | . 1 1 1 . 4 6 1 5 . Failed 24 | . 1 . . . 2 15 . 6 . Catastrophic 5 | . . . . . 1 3 . 1 . Database Lockouts . | . . . . . . . . . . Manual 27 | . 2 . 1 . 4 16 . 4 . Terminals 29 | . 2 . . . 4 11 1 11 . Fabricators 3 | . . . . . . 3 . . . Repair Stations 2 | . . . . . 2 . . . . Recycling Units 4 | . . . . . . 4 . . . Scanalyzers . | . . . . . . . . . . Garrison Access 3 | . . . . . . 3 . . . Terminal Hacks 9 | . . 1 1 . . 2 1 4 . Open Door 2 | . . 1 . . . . 1 . . Open DSF 1 | . . . . . . 1 . . . Alert Level 3 | . . . . . . 1 . 2 . Locate Traps 2 | . . . . . . . . 2 . Derelict Proto ID Bank 1 | . . . 1 . . . . . . Fabricator Hacks . | . . . . . . . . . . Repair Station Hacks 2 | . . . . . 2 . . . . Scan Component 1 | . . . . . 1 . . . . Repair 1 | . . . . . 1 . . . . Recycling Unit Hacks 1 | . . . . . . 1 . . . Retrieve Components 1 | . . . . . . 1 . . . Scanalyzer . | . . . . . . . . . . Garrison Access Hacks . | . . . . . . . . . . Unauthorized Hacks 7 | . 1 . . . 2 3 . 1 . Terminals 4 | . 1 . . . 2 . . 1 . Botnet 3 | . 1 . . . 1 . . 1 . Operators 1 | . . . . . 1 . . . . Fabricators 1 | . . . . . . 1 . . . Report 1 | . . . . . . 1 . . . Repair Stations . | . . . . . . . . . . Recycling Units 2 | . . . . . . 2 . . . Reject 2 | . . . . . . 2 . . . Scanalyzers . | . . . . . . . . . . Garrison Access . | . . . . . . . . . . Data Cores Recovered . | . . . . . . . . . . Used . | . . . . . . . . . . Hacking Detections 17 | . 1 . . . 3 10 . 3 . Full Trace Events 2 | . . . . . . 1 . 1 . Feedback Events . | . . . . . . . . . . Feedback Blocked . | . . . . . . . . . . Robot Schematics Acquired . | . . . . . . . . . . Robots Built . | . . . . . . . . . . Authchips . | . . . . . . . . . . Time . | . . . . . . . . . . Total Robot Build Rating . | . . . . . . . . . . Part Schematics Acquired . | . . . . . . . . . . Parts Built . | . . . . . . . . . . Authchips . | . . . . . . . . . . Time . | . . . . . . . . . . Total Part Build Rating . | . . . . . . . . . . Parts Repaired 1 | . . . . . 1 . . . . Time 44 | . . . . . 44 . . . . Parts Recycled . | . . . . . . . . . . Recycled Matter . | . . . . . . . . . . Retrieved Matter . | . . . . . . . . . . Retrieved Components . | . . . . . . . . . . Parts Scanalyzed . | . . . . . . . . . . Part Schematics Acquired . | . . . . . . . . . . Parts Damaged . | . . . . . . . . . . Bothacking | -11 -10 -10 -10 -9 -8 -7 -6 -6 -6 ------------ Run | Yrd Mat Min Exi Min Mat Fac Fac Ext Cet Used RIF Installer . | . . . . . . . . . . Robots Hacked . | . . . . . . . . . . Non-combat . | . . . . . . . . . . Combat . | . . . . . . . . . . Robot Hacks Applied . | . . . . . . . . . . Relay Couplers Released 4 | . . . . . . 4 . . . Programmers 4 | . . . . . . 4 . . . Fabnet Peak Effective % . | . . . . . . . . . . Robots Rewired 28 | . . . . . . . . 28 . Allies Hacked . | . . . . . . . . . . Hacks Repelled . | . . . . . . . . . . Allies | -11 -10 -10 -10 -9 -8 -7 -6 -6 -6 -------- Run | Yrd Mat Min Exi Min Mat Fac Fac Ext Cet Total Allies 29 | . . . . . . . . 29 . Largest Group 10 | . . . . . . . . 10 . Highest-Rated Group 415 | . . . . . . . . 415 . Highest-Rated Ally 159 | . . . . . . . . 159 . Total Orders 1 | . . 1 . . . . . . . RETURN 1 | . . 1 . . . . . . . Ally Attacks 276 | . . . . . . . . 276 . Total Damage 5711 | . . . . . . . . 5711 . Kills 32 | . . . . . . . . 32 . Allies Corrupted . | . . . . . . . . . . Allies Melted 1 | . . . . . . . . 1 . Intel | -11 -10 -10 -10 -9 -8 -7 -6 -6 -6 ------- Run | Yrd Mat Min Exi Min Mat Fac Fac Ext Cet Robot Analysis Total . | . . . . . . . . . . Derelict Logs Recovered 1 | . . . . 1 . . . . . Drone Launches 1 | . . 1 . . . . . . . Drone Recoveries 1 | . . 1 . . . . . . . Exploration | -11 -10 -10 -10 -9 -8 -7 -6 -6 -6 ------------- Run | Yrd Mat Min Exi Min Mat Fac Fac Ext Cet Turns Passed 5842 | 64 192 149 711 92 773 1931 100 1803 27 Spaces Moved 5045 | 37 76 89 432 52 500 2758 144 921 36 Core 98 | 4 . . . . . . . 58 36 Treads 1085 | 31 76 89 432 52 335 . . 70 . Legs 740 | 2 . . . . . . . 738 . Wheels . | . . . . . . . . . . Hover 3122 | . . . . . 165 2758 144 55 . Flight . | . . . . . . . . . . Fastest Speed 48 | 50 160 160 160 160 52 48 48 48 50 Average Speed 85 | 145 160 160 160 160 124 48 48 123 69 Slowest Speed 450 | 160 160 160 160 160 163 112 48 450 150 Overloaded Moves . | . . . . . . . . . . Propulsion Burnouts . | . . . . . . . . . . Robots Hopped . | . . . . . . . . . . Cave-ins Triggered . | . . . . . . . . . . Exploration Rate (%) 35 | 4 13 29 90 14 34 68 7 78 20 Regions Visited 9 Branch Regions 5 Pre-discovered Areas . | . . . . . . . . . . Known Exits Taken 3 | . . . . . 1 1 1 . . Unknown Exits Taken 6 | 1 1 1 1 1 . . . 1 . Scrap Searched 3 | . . 1 . 2 . . . . . Spaces Dug 2 | . . . . . . 1 . 1 . Terrain Destroyed 268 | . . . . . . 1 . 267 . Melee 2 | . . . . . . 1 . 1 . Projectile 2 | . . . . . . . . 2 . AOE 264 | . . . . . . . . 264 . Terrain Rammed . | . . . . . . . . . . Walls Destroyed . | . . . . . . . . . . Machines Disabled . | . . . . . . . . . . Actions | -11 -10 -10 -10 -9 -8 -7 -6 -6 -6 --------- Run | Yrd Mat Min Exi Min Mat Fac Fac Ext Cet Total 6205 | 45 116 96 452 61 622 3186 171 1418 38 Wait 442 | . 20 2 15 3 42 277 23 60 . Move 5035 | 36 75 88 431 51 499 2757 142 920 36 Hop . | . . . . . . . . . . Pick Up 26 | . 2 2 . . 7 14 . 1 . Fast Attach 81 | 7 2 2 1 2 22 12 . 33 . Attach 14 | . . . 1 . 2 5 2 3 1 Detach 16 | 1 1 2 1 . 3 2 . 5 1 Swap 54 | . 1 . 1 2 5 15 2 28 . Drop 92 | 1 . . 2 3 29 28 . 29 . Fire 199 | . 15 . . . 13 74 1 96 . Melee 14 | . . . . . . 2 . 12 . Ram 2 | . . . . . . . . 2 . Kick 2 | . . . . . . . . 2 . Crush . | . . . . . . . . . . Escape Stasis 2 | . . . . . . . 1 1 . Rewire 226 | . . . . . . . . 226 . Trap . | . . . . . . . . . . Miscellaneous . | . . . . . . . . . . Route ------- -11/Scrapyard -10/Materials -10/Mines -10/Exiles -9/Mines -8/Materials -7/Factory (discovered 3 exits: *Fac / *Low x2) -6/Factory -6/Extension (discovered 3 exits: [*Fac x2] / [*Cet]) -6/Cetus History --------- Turn | Location | Event 3 | -11/Scrapyard | Discovered new exit (range 15) 65 | -11/Scrapyard | Entered Materials 94 | -10/Materials | Discovered new exit (range 15) 257 | -10/Materials | Entered Mines 265 | -10/Mines | Received a Rocket Launcher from a helpful Derelict 298 | -10/Mines | Found the Drone Emporium 307 | -10/Mines | Found Prototype Device 307 | -10/Mines | Identified Splice Drone Bay 328 | -10/Mines | Build established: Mutant 400 | -10/Mines | Deemed a non-threat by the Exiles lab entrance 400 | -10/Mines | Discovered new exit (range 5) 406 | -10/Mines | Entered Exiles 453 | -10/Exiles | Met 8R-AWN 475 | -10/Exiles | Met EX-HEX 520 | -10/Exiles | Met EX-BIN 542 | -10/Exiles | Aligned with FarCom system 544 | -10/Exiles | Given EX-Vault access code 581 | -10/Exiles | Opened EX-Vault 596 | -10/Exiles | Found Cloak of Protection 656 | -10/Exiles | Warned to stay clear of 0b10 Research branches 699 | -10/Exiles | Met EX-DEC 759 | -10/Exiles | Visited The Gauntlet 1099 | -10/Exiles | Discovered new exit (range 12) 1117 | -10/Exiles | Left Exiles lab with Cloak of Protection 1117 | -10/Exiles | Entered Mines 1132 | -9/Mines | Met a Derelict bent on vengeance 1133 | -9/Mines | Learned Materials garrison access intel 1151 | -9/Mines | Discovered new exit (range 15) 1209 | -9/Mines | Entered Materials 1209 | -8/Materials | Evolved 4 slots: Propulsion x1, Utility x2, Weapon x1 1210 | -8/Materials | Loaded intel: 1 garrison access location 1533 | -8/Materials | Repaired Gatling Laser 1891 | -8/Materials | Discovered new exit (range 8) 1903 | -8/Materials | Build established: Skirmisher 1981 | -8/Materials | Identified exit to Factory 1982 | -8/Materials | Entered Factory 1982 | -7/Factory | Evolved 2 slots: Propulsion x1, Utility x1 2144 | -7/Factory | Discovered new exit (range 7) 2147 | -7/Factory | Identified exit to Lower Caves 3466 | -7/Factory | Build established: Mutant 3579 | -7/Factory | Discovered exit to Lower Caves (range 3) 3825 | -7/Factory | Build established: Skirmisher 3888 | -7/Factory | Discovered new exit (range 15) 3900 | -7/Factory | Identified exit to Factory 3913 | -7/Factory | Entered another Factory area 3913 | -6/Factory | Evolved 2 slots: Utility x2 4010 | -6/Factory | Discovered new exit (range 10) 4013 | -6/Factory | Identified exit to Extension 4013 | -6/Factory | Entered Extension 4134 | -6/Extension | Lost 5 parts (4n1u) 4360 | -6/Extension | Lost 4 parts (2n1u1w) 4442 | -6/Extension | Build established: Mutant 4755 | -6/Extension | Energy Cycler disabled 4755 | -6/Extension | Rescued a captive Derelict 4755 | -6/Extension | Rescued a captive Derelict 4758 | -6/Extension | Rescued a captive Derelict 4763 | -6/Extension | Rescued a captive Derelict 4786 | -6/Extension | Lost 3 parts (2n1u) 4786 | -6/Extension | Lost 5 allies 4791 | -6/Extension | Rescued A7 4988 | -6/Extension | Disrupted transfer network 4991 | -6/Extension | Spotted B-75 Beast 4993 | -6/Extension | Spotted B-75 Beast 4995 | -6/Extension | Destroyed B-75 Beast 5013 | -6/Extension | Allies destroyed B-75 Beast 5019 | -6/Extension | Discovered new exit (range 15) 5042 | -6/Extension | Lost 4 parts (2n2u) 5063 | -6/Extension | First assault squad dispatched 5108 | -6/Extension | Lost 7 allies 5114 | -6/Extension | Destroyed 8 combat bots 5412 | -6/Extension | Build established: Scavenger-Mutant 5797 | -6/Extension | Core integrity fell below 50% 5800 | -6/Extension | Released all parts (6) 5809 | -6/Extension | Discovered new exit (range 10) 5811 | -6/Extension | Discovered new exit (range 6) 5812 | -6/Extension | Lost 6 allies 5816 | -6/Extension | Entered Cetus 5824 | -6/Cetus | Spotted Cetus Guard 5824 | -6/Cetus | Spotted Cetus Guard 5825 | -6/Cetus | Spotted Cetus Guard 5826 | -6/Cetus | Core integrity fell below 20% 5829 | -6/Cetus | Lost 9 parts (1p4n2u2w) 5832 | -6/Cetus | Spotted Cetus Guard 5843 | -6/Cetus | Destroyed by Cetus Guard with Advanced KE Penetrator Last Messages --------------- 05807_ The unstable cave ceiling collapses. 05807_ X-67 Chaingunner crushed by falling debris. 05807_ M-28 Smith repairs G-67 Veteran. 05808_ Slammed into I-36 Angel. 05809_ EXIT=FOUND 05809_ Acquired Prototype Flight Unit. 05809_ Identified Biomechanical Wings. 05810_ M-28 Smith repairs Plasma Rifle. 05811_ Dropped Faulty Biomechanical Wings. 05811_ Acquired 10 matter. 05811_ EXIT=FOUND 05812_ Slammed into I-36 Angel. 05815_ Acquired Adv. Melee Analysis Suite. LOCATION=UNKNOWN GOAL=ESCAPE 05816_ Receiving FarCom transmissions... 05825_ Penetrated by Slug. 05828_ F4%A>LOB4V=PFBY1GU4YDKE,FDTZB3 05828_ Penetrated by Slug. 05840_ Slug penetrates Wall. Map ----- +----------------------------------------------------+ | | | | | ???????????????????????????????????????????????? | | ???????????????????????????????????????????????? | | ???????????????????????????????????????????????? | | ???????????????????????????????????????????????? | | ???????????????????????????????????????????????? | | ???????????????????????????????????????????????? | | ???????????????????????????????????????????????? | | ???????????????????????????????????????????????? | | ??????????????????????? ?????????????????????? | | ??????????????????????? #????????????????????? | | ??????????????????????? #????????????????????? | | ??????????????????????? #????????????????????? | | ??????????????????????? #????????????????????? | | ??????????????????????? #????????????????????? | | ??????????????????????? #????????????????????? | | ??????????????????????# #????????????????????? | | ??????????????????????# #????????????????????? | | ??????????????????????# #????????????????????? | | ??????????????????????# #????????????????????? | | ??????????????????????# #????????????????????? | | ??????????????????????# #????????????????????? | | ??????????????????????# #????????????????????? | | ??????????????????????# #????????????????????? | | ??????????????????????#@ #????????????????????? | | ??????????????????????# #????????????????????? | | ??????????????????????# #????????????????????? | | ??????????????????????# #????????????????????? | | ??????????????????????# #????????????????????? | | ??????????????????????# #????????????????????? | | ??????????????????????# #????????????????????? | | ??????????????????????# #????????????????????? | | ??????????????????????# #????????????????????? | | ??????????????????????# #????????????????????? | | ??????????????????????# #????????????????????? | | ??????????????????????# #????????????????????? | | ??????????????????????# #????????????????????? | | ??????????????????????# #????????????????????? | | ??????????????????????# #????????????????????? | | ?????????????????????## #????????????????????? | | ?###############"#####" YY#####????????????????? | | ?# Y +?????????? | | ?# +?????????? | | ?# +?????????? | | ?############################### ###?????????? | | ??????????????????????????????????##???????????? | | ???????????????????????????????????????????????? | | ???????????????????????????????????????????????? | | ???????????????????????????????????????????????? | +----------------------------------------------------+ Best States ------------- Heat Dissipation 88 Energy Generation 19 Energy Capacity 510 Matter Stores 300 Matter Capacity 300 Sight Range 16 Terrain Scan Density 10 Cloak Strength 5 Additional Mass Support 9 Armor Coverage 225 Phase Shifting 5 Evasion (%) 63 Targeting Accuracy 8 Melee Accuracy 8 Armor Integrity Analysis 30 Recoil Reduction 3 Offensive Hacking 10 Item Schematics ----------------- None Robot Schematics ------------------ None Fabricated ------------ Nothing Alien Tech Used ----------------- None Achievements -------------- None Challenges ------------ None Game ------ Seed SlugPhasingFlakker Manual? 0 Play Time 01:01:08 Cumulative 124.0 hours Start 2024.07.12 @ 11:54:55 End 2024.07.12 @ 13:14:19 Sessions 1 Manual Loads 0 Difficulty Rogue Special Mode None Game No. 149 Rogue 143 Adventurer 6 Explorer 0 Win Type - Total 1 Types 1/0/0/0/0/0/0/0/0 Lore% 41 Gallery% 64 Achievement% 47 Wizard Run 0 Options --------- Layout 0 ASCII 0 Keyboard 1 Movement Numpad Keybinds 0 Fullscreen 0 Font 14/Smallcaps Map View 76x50 Zoom Use 0% Tactical HUD 1 Map Filters NONE Filters NONE Steam 1 RUN: 2c84235f-3d25-44ec-a4d6-ef8958839168